bitfinex-derivatives/quotes_BTCF0:USTF0_20250620
["timestamp","ask_amount","ask_price","bid_price","bid_amount"]
[1750455372465,0.77636889,103660.0,103650.0,1.63421427]
[1750455376767,0.77636889,103660.0,103650.0,1.27341427]
[1750455376967,0.77636889,103660.0,103650.0,1.63421427]
[1750455379970,0.69927759,103660.0,103650.0,1.63421427]
[1750455383175,0.77636889,103660.0,103650.0,1.63421427]
[1750455385974,0.77636889,103660.0,103650.0,1.03917427]
[1750455386176,0.77636889,103660.0,103650.0,1.63397427]
[1750455386773,0.77636889,103660.0,103650.0,0.67837427]
[1750455387075,0.77636889,103660.0,103650.0,1.63397427]
[1750455390580,0.77636889,103660.0,103650.0,1.27317427]
[1750455390880,0.77636889,103660.0,103650.0,1.63397427]
[1750455391083,0.74685132,103660.0,103650.0,1.63397427]
[1750455396785,0.74685132,103660.0,103650.0,1.77381427]
[1750455399182,0.74685132,103660.0,103650.0,1.41301427]
[1750455399385,0.74685132,103660.0,103650.0,1.77381427]
[1750455400874,0.74685132,103660.0,103650.0,1.63397427]
[1750455404887,0.74685132,103660.0,103650.0,1.77381427]
[1750455405587,0.57280699,103660.0,103650.0,1.77381427]
[1750455406992,0.65162224,103660.0,103650.0,1.77381427]
[1750455407187,0.25434942,103660.0,103650.0,1.77381427]
[1750455407385,0.65162224,103660.0,103650.0,1.77381427]
[1750455409888,0.65162224,103660.0,103650.0,1.01574145]
[1750455410094,0.57453094,103660.0,103650.0,1.77381427]
[1750455410293,0.57453094,103660.0,103650.0,1.41301427]
[1750455410898,0.65160842,103660.0,103650.0,1.77381427]
[1750455411202,0.65160842,103660.0,103650.0,1.41301427]
[1750455411602,0.65160842,103660.0,103650.0,1.77381427]
[1750455413303,0.65160842,103660.0,103650.0,1.41301427]
[1750455413502,0.65160842,103660.0,103650.0,1.77381427]
[1750455414203,0.65160842,103660.0,103650.0,1.41301427]
[1750455414402,0.65160842,103660.0,103650.0,1.77381427]
[1750455418796,0.2543356,103660.0,103650.0,1.77381427]
[1750455419091,0.65160842,103660.0,103650.0,1.77381427]
[1750455419992,0.65160842,103660.0,103650.0,1.77481427]
[1750455420300,0.65160842,103660.0,103650.0,1.77681427]
[1750455421406,0.43546993,103660.0,103650.0,1.37954145]
[1750455421705,0.70373413,103660.0,103650.0,1.27617427]
[1750455422502,1.57035082,103660.0,103650.0,0.003]
[1750455422702,0.0482382,103650.0,103620.0,0.71590154]
[1750455422908,0.59024982,103630.0,103620.0,1.36232596]
[1750455423400,0.62184982,103630.0,103620.0,0.96545314]
[1750455423604,0.62184982,103630.0,103620.0,1.36272596]
[1750455424101,0.62184982,103630.0,103620.0,0.96545314]
[1750455424297,0.62184982,103630.0,103620.0,1.36272596]
[1750455424605,0.62184982,103630.0,103620.0,0.05017454]
[1750455424805,0.62184982,103630.0,103620.0,0.64805454]
[1750455424994,0.65314982,103630.0,103620.0,0.64845454]
[1750455425402,0.65314982,103630.0,103620.0,0.64645454]
[1750455426005,0.65314982,103630.0,103620.0,0.83945014]
[1750455426795,0.65314982,103630.0,103620.0,0.24517014]
[1750455427104,0.65314982,103630.0,103620.0,0.83941014]
[1750455429216,0.71072026,103630.0,103620.0,0.83941014]
[1750455431509,0.71072026,103630.0,103620.0,0.86981014]
[1750455432208,0.64782026,103630.0,103620.0,0.86981014]
[1750455438419,0.64782026,103630.0,103620.0,0.27557014]
[1750455438606,0.64782026,103630.0,103620.0,0.86977014]
[1750455439713,0.64782026,103630.0,103620.0,0.87394421]
[1750455442412,0.64782026,103630.0,103620.0,0.85656967]
[1750455442718,0.25054744,103630.0,103620.0,1.25384249]
[1750455442917,0.64782026,103630.0,103620.0,0.85656967]
[1750455443110,0.64782026,103630.0,103620.0,1.25384249]
[1750455443417,0.25054744,103630.0,103620.0,1.25384249]
[1750455443609,0.64782026,103630.0,103620.0,1.25384249]
[1750455445317,0.25054744,103630.0,103620.0,1.25384249]
[1750455445515,0.64782026,103630.0,103620.0,1.25384249]
[1750455445816,0.64782026,103630.0,103620.0,1.61464249]
[1750455446522,0.64782026,103630.0,103620.0,1.25384249]
[1750455446707,0.64782026,103630.0,103620.0,0.85656967]
[1750455447018,0.64782026,103630.0,103620.0,1.61464249]
[1750455448215,0.64782026,103630.0,103620.0,1.25384249]
[1750455448422,0.64782026,103630.0,103620.0,1.61464249]
[1750455451224,0.59024982,103630.0,103620.0,1.61464249]
[1750455452027,0.64793553,103630.0,103620.0,1.61464249]
[1750455452326,0.59024982,103630.0,103620.0,1.61464249]
[1750455452528,0.59024982,103630.0,103620.0,1.64704249]
[1750455454727,0.59024982,103630.0,103620.0,1.28624249]
[1750455454928,0.59024982,103630.0,103620.0,1.64704249]
[1750455455728,0.59024982,103630.0,103620.0,1.28624249]
[1750455455925,0.59024982,103630.0,103620.0,1.64704249]
[1750455456734,0.66698657,103630.0,103620.0,1.64704249]
[1750455458632,0.66698657,103630.0,103620.0,1.28624249]
[1750455458833,0.66698657,103630.0,103620.0,1.64704249]
[1750455459936,0.66698657,103630.0,103620.0,1.28624249]
[1750455460137,0.66698657,103630.0,103620.0,1.64704249]
[1750455462243,0.66698657,103630.0,103620.0,1.28624249]
[1750455462531,0.66698657,103630.0,103620.0,1.05284249]
[1750455462728,0.66698657,103630.0,103620.0,1.64676249]
[1750455463235,0.66698657,103630.0,103620.0,1.05284249]
[1750455463436,0.66698657,103630.0,103620.0,1.64676249]
[1750455464330,0.59024982,103630.0,103620.0,1.64676249]
[1750455464838,0.59024982,103630.0,103620.0,1.28596249]
[1750455465130,0.59024982,103630.0,103620.0,1.64676249]
[1750455466130,0.192977,103630.0,103620.0,1.64676249]
[1750455466331,0.59024982,103630.0,103620.0,1.64676249]
[1750455470535,0.59024982,103630.0,103620.0,1.28596249]
[1750455472544,0.39727282,103630.0,103620.0,1.28596249]
[1750455472736,0.66698657,103630.0,103620.0,1.28580249]
[1750455473240,0.59024982,103630.0,103620.0,1.64660249]
[1750455474441,0.192977,103630.0,103620.0,1.64660249]
[1750455474647,0.59024982,103630.0,103620.0,1.64660249]
[1750455474840,0.59024982,103630.0,103620.0,1.24932967]
[1750455475046,0.59024982,103630.0,103620.0,1.64660249]
[1750455481348,0.192977,103630.0,103620.0,1.64660249]
[1750455481651,0.59024982,103630.0,103620.0,1.64660249]
[1750455488655,0.95104982,103630.0,103620.0,0.69204249]
[1750455488854,0.95104982,103630.0,103620.0,1.28560249]
[1750455489046,0.59024982,103630.0,103620.0,1.28560249]
[1750455492356,0.59024982,103630.0,103620.0,0.88832967]
[1750455492555,0.59024982,103630.0,103620.0,1.28560249]
[1750455494157,0.59024982,103630.0,103620.0,1.64640249]
[1750455496757,0.192977,103630.0,103620.0,1.64640249]
[1750455496959,0.59024982,103630.0,103620.0,1.64640249]
[1750455497457,0.59024982,103630.0,103620.0,1.28560249]
[1750455498353,0.59024982,103630.0,103620.0,1.64640249]
[1750455499660,0.59024982,103630.0,103620.0,1.28560249]
[1750455500759,0.59024982,103630.0,103620.0,0.88832967]
[1750455500951,0.59024982,103630.0,103620.0,1.28560249]
[1750455510467,0.59024982,103630.0,103620.0,0.88832967]
[1750455510665,0.59024982,103630.0,103620.0,1.28560249]
[1750455513962,0.59024982,103630.0,103620.0,0.10177407]
[1750455514265,0.59024982,103630.0,103620.0,0.88752947]
[1750455514465,0.59024982,103630.0,103620.0,0.88792947]
[1750455514666,0.59024982,103630.0,103620.0,0.29476947]
[1750455514866,0.1929954,103620.0,103610.0,0.0008]
[1750455515073,1.42507779,103620.0,103610.0,0.0314]
[1750455515266,1.59599735,103620.0,103610.0,0.0306]
[1750455515463,1.59599735,103620.0,103610.0,0.031]
[1750455515771,1.59599735,103620.0,103610.0,0.0306]
[1750455515970,1.62669735,103620.0,103610.0,0.031]
[1750455516271,0.193014,103610.0,103600.0,0.44760737]
[1750455516468,1.57845755,103620.0,103600.0,0.44760737]
[1750455516469,0.54385631,103620.0,103600.0,1.46846019]
[1750455516669,0.45714685,103630.0,103620.0,0.19716967]
[1750455516670,0.36620915,103630.0,103620.0,0.19716967]
[1750455516964,0.2894724,103630.0,103620.0,1.54832249]
[1750455517162,0.68674522,103630.0,103620.0,1.61102249]
[1750455517966,0.68674522,103630.0,103620.0,1.64302249]
[1750455522670,0.76348197,103630.0,103620.0,1.64302249]
[1750455525879,0.68674522,103630.0,103620.0,1.64302249]
[1750455526271,0.76348197,103630.0,103620.0,1.64302249]
[1750455526472,0.68674522,103630.0,103620.0,1.64302249]
[1750455526668,0.76348197,103630.0,103620.0,1.64302249]
[1750455526974,0.68674522,103630.0,103620.0,1.64302249]
[1750455536280,0.68674522,103630.0,103620.0,1.24574967]
[1750455536479,0.68674522,103630.0,103620.0,1.64302249]
[1750455542688,0.68674522,103630.0,103620.0,1.24574967]
[1750455542984,0.68674522,103630.0,103620.0,1.64302249]
[1750455544684,0.5023307,103630.0,103620.0,1.64302249]
[1750455544985,0.6953076,103630.0,103620.0,1.64302249]
[1750455545186,0.29803478,103630.0,103620.0,1.64302249]
[1750455545390,0.6953076,103630.0,103620.0,1.64302249]
[1750455546386,0.77204435,103630.0,103620.0,1.64302249]
[1750455560411,0.37477153,103630.0,103620.0,1.64302249]
[1750455560610,0.77204435,103630.0,103620.0,1.64302249]
[1750455561212,0.77204435,103630.0,103620.0,1.24574967]
[1750455561509,0.77204435,103630.0,103620.0,1.64302249]
[1750455563610,0.77204435,103630.0,103620.0,1.04994249]
[1750455563814,0.77204435,103630.0,103620.0,1.64266249]
[1750455574323,0.77204435,103630.0,103620.0,1.24538967]
[1750455574622,0.77204435,103630.0,103620.0,1.64266249]
[1750455576835,0.77204435,103630.0,103620.0,1.63324801]
[1750455577424,0.77204435,103630.0,103620.0,1.63742208]
[1750455589030,0.77204435,103630.0,103620.0,1.24014926]
[1750455589231,0.77204435,103630.0,103620.0,1.63742208]
[1750455590234,0.77204435,103630.0,103620.0,1.24014926]
[1750455591633,1.13284435,103630.0,103620.0,0.87906926]
[1750455592030,1.13284435,103630.0,103620.0,0.87902926]
[1750455592234,0.73557153,103630.0,103620.0,0.87902926]
[1750455592433,1.13284435,103630.0,103620.0,0.87902926]
[1750455594632,1.13284435,103630.0,103620.0,0.86961446]
[1750455598838,0.94022788,103630.0,103620.0,0.86961446]
[1750455599138,1.03672448,103630.0,103620.0,0.86961446]
[1750455599537,0.63945166,103630.0,103620.0,0.86961446]
[1750455599739,1.03672448,103630.0,103620.0,1.26688728]
[1750455600234,0.23040336,103630.0,103620.0,1.23041446]
[1750455600436,0.07673675,103640.0,103630.0,0.1929765]
[1750455600633,0.07673675,103640.0,103630.0,1.06638688]
[1750455600840,0.3608,103650.0,103640.0,0.1929579]
[1750455601037,0.3616,103650.0,103640.0,1.57982354]
[1750455601234,0.0008,103650.0,103640.0,2.00622354]
[1750455601430,0.05851674,103650.0,103640.0,2.14494354]
[1750455601839,0.05771674,103650.0,103640.0,2.14494354]
[1750455602638,0.05811674,103650.0,103640.0,2.14494354]
[1750455602841,0.05771674,103650.0,103640.0,2.14494354]
[1750455603135,0.0004,103650.0,103640.0,2.14494354]
[1750455603341,0.0004,103650.0,103640.0,2.14694354]
[1750455603643,0.0004,103650.0,103640.0,2.14894354]
[1750455605840,0.0004,103650.0,103640.0,2.15311761]
[1750455606746,0.0004,103650.0,103640.0,1.35857197]
[1750455607043,0.0004,103650.0,103640.0,2.15311761]
[1750455609442,0.1933393,103650.0,103640.0,2.15311761]
[1750455609743,0.1933393,103650.0,103640.0,1.42207761]
[1750455609954,0.59061212,103650.0,103640.0,0.85885197]
[1750455610245,0.62101212,103650.0,103640.0,0.85925197]
[1750455610546,1.18269124,103650.0,103640.0,0.82655197]
[1750455610742,1.18269124,103650.0,103640.0,0.82615197]
[1750455610945,1.18269124,103650.0,103640.0,0.79365197]
[1750455611242,1.18269124,103650.0,103640.0,0.79165197]
[1750455612638,1.18269124,103650.0,103640.0,0.19753197]
[1750455614851,1.18269124,103650.0,103640.0,0.00457407]
[1750455615139,0.78541842,103650.0,103640.0,0.00417407]
[1750455615340,1.18269124,103650.0,103640.0,0.00417407]
[1750455615541,1.57996406,103650.0,103640.0,0.00457407]
[1750455615737,1.52224732,103650.0,103640.0,0.00417407]
[1750455615938,1.52224732,103650.0,103640.0,0.00457407]
[1750455616338,1.52424732,103650.0,103640.0,0.00457407]
[1750455617343,0.1929579,103640.0,103630.0,0.0621]
[1750455617638,1.44180354,103640.0,103630.0,0.032]
[1750455617845,1.54807852,103640.0,103630.0,0.032]
[1750455618142,0.1929765,103630.0,103620.0,0.944793]
[1750455618343,1.03856482,103630.0,103620.0,0.977493]
[1750455618545,1.03856482,103630.0,103620.0,0.385373]
[1750455618846,1.03856482,103630.0,103620.0,0.3371249]
[1750455619444,1.03856482,103630.0,103620.0,0.3391249]
[1750455619948,1.03856482,103630.0,103620.0,0.3411249]
[1750455620456,1.03856482,103630.0,103620.0,0.3391249]
[1750455620843,1.03856482,103630.0,103620.0,0.3371249]
[1750455621044,1.03856482,103630.0,103620.0,0.2888773]
[1750455621244,1.43583764,103630.0,103620.0,0.0008]
[1750455621444,1.56806845,103630.0,103620.0,0.0008]
[1750455622345,0.1929951,103620.0,103610.0,0.4331536]
[1750455622549,0.98754074,103620.0,103610.0,0.4339536]
[1750455623050,0.59029484,103620.0,103610.0,0.4339536]
[1750455623545,0.6248924,103620.0,103610.0,0.4339536]
[1750455629358,0.6248924,103620.0,103610.0,0.4331536]
[1750455629545,0.6248924,103620.0,103610.0,0.4335536]
[1750455630350,0.22759266,103620.0,103610.0,0.4335536]
[1750455630555,0.6248924,103620.0,103610.0,0.4335536]
[1750455632257,0.6248924,103620.0,103610.0,0.45098033]
[1750455634258,0.6248924,103620.0,103610.0,0.4551544]
[1750455634556,0.22759266,103620.0,103610.0,0.8159544]
[1750455635468,0.22759266,103620.0,103610.0,0.4551544]
[1750455635758,0.22759266,103620.0,103610.0,0.43772767]
[1750455636158,0.22759266,103620.0,103610.0,0.79852767]
[1750455638960,0.22759266,103620.0,103610.0,1.19582741]
[1750455639262,0.28510816,103620.0,103610.0,1.19582741]
[1750455640054,0.28510816,103620.0,103610.0,0.79852767]
[1750455640357,0.28510816,103620.0,103610.0,0.43772767]
[1750455642862,0.68236161,103620.0,103610.0,0.83498112]
[1750455644558,0.68236161,103620.0,103610.0,0.43772767]
[1750455644862,0.68236161,103620.0,103610.0,0.79852767]
[1750455645356,1.07961506,103620.0,103610.0,0.79852767]
[1750455646062,1.02209956,103620.0,103610.0,0.43772767]
[1750455646262,1.02209956,103620.0,103610.0,0.79852767]
[1750455646959,0.62484611,103620.0,103610.0,0.79852767]
[1750455650362,1.02209956,103620.0,103610.0,0.79852767]
[1750455651067,1.09883631,103620.0,103610.0,0.79852767]
[1750455651969,1.02209956,103620.0,103610.0,0.79852767]
[1750455653070,1.02209956,103620.0,103610.0,0.43772767]
[1750455657174,1.02209956,103620.0,103610.0,0.43732767]
[1750455658081,1.05289956,103620.0,103610.0,0.43772767]
[1750455660284,0.25839266,103620.0,103610.0,0.43772767]
[1750455660478,1.05289956,103620.0,103610.0,0.43772767]
[1750455668085,1.02209956,103620.0,103610.0,0.43772767]
[1750455668386,0.22759266,103620.0,103610.0,0.43772767]
[1750455668582,1.02209956,103620.0,103610.0,0.43772767]
[1750455668984,0.22759266,103620.0,103610.0,0.43772767]
[1750455669185,0.62484611,103620.0,103610.0,0.83498112]
[1750455669576,1.02209956,103620.0,103610.0,0.43772767]
[1750455669981,0.62484611,103620.0,103610.0,0.43772767]
[1750455670787,1.02209956,103620.0,103610.0,0.43772767]
[1750455670994,0.62484611,103620.0,103610.0,1.19578112]
[1750455671383,0.68257407,103620.0,103610.0,1.19578112]
[1750455671590,0.62484611,103620.0,103610.0,1.19578112]
[1750455672091,0.68257427,103620.0,103610.0,1.19578112]
[1750455672985,0.62484611,103620.0,103610.0,1.19578112]
[1750455674194,0.59024855,103620.0,103610.0,1.19578112]
[1750455674395,0.8117242,103630.0,103620.0,0.1929951]
[1750455674693,0.8117242,103630.0,103620.0,0.8812351]
[1750455675089,0.763476,103630.0,103620.0,0.8812351]
[1750455675591,0.764476,103630.0,103620.0,0.8812351]
[1750455675900,0.766476,103630.0,103620.0,0.8812351]
[1750455676190,0.766476,103630.0,103620.0,1.27848855]
[1750455676583,0.766476,103630.0,103620.0,1.63928855]
[1750455677293,0.68973925,103630.0,103620.0,1.63928855]
[1750455678090,0.766476,103630.0,103620.0,1.63928855]
[1750455678980,0.20357644,103630.0,103620.0,1.63928855]
[1750455679178,0.62058824,103630.0,103620.0,1.63928855]
[1750455680986,0.62058824,103630.0,103620.0,1.64346262]
[1750455688992,0.62058824,103630.0,103620.0,1.24620917]
[1750455689193,1.37864169,103630.0,103620.0,0.19716917]
[1750455689398,0.1929951,103620.0,103610.0,0.0004]
[1750455689698,0.1930137,103610.0,103600.0,0.1930324]
[1750455689998,1.22969228,103610.0,103600.0,0.1930324]
[1750455690697,0.83243883,103610.0,103600.0,0.1930324]
[1750455690900,1.22982742,103610.0,103600.0,0.1930324]
[1750455691395,1.23082742,103610.0,103600.0,0.1930324]
[1750455691998,1.23282742,103610.0,103600.0,0.1930324]
[1750455693195,0.87202742,103610.0,103600.0,0.1930324]
[1750455693499,0.79513688,103610.0,103600.0,0.1930324]
[1750455694297,1.15593688,103610.0,103600.0,0.1930324]
[1750455695204,1.15593688,103610.0,103600.0,0.19720647]
[1750455696099,1.23282742,103610.0,103600.0,0.19720647]
[1750455696403,1.15593688,103610.0,103600.0,0.19720647]
[1750455697796,1.23282742,103610.0,103600.0,0.19720647]
[1750455698401,0.75854829,103610.0,103600.0,0.19720647]
[1750455698702,1.15593688,103610.0,103600.0,0.19720647]
[1750455701502,1.23282742,103610.0,103600.0,0.19720647]
[1750455702106,1.82486742,103610.0,103600.0,0.19720647]
[1750455702302,1.74797688,103610.0,103600.0,0.19720647]
[1750455705110,1.35058829,103610.0,103600.0,0.19720647]
[1750455705305,1.74797688,103610.0,103600.0,0.19720647]
[1750455706208,1.80546773,103610.0,103600.0,0.19720647]
[1750455706908,1.80546773,103610.0,103600.0,0.22820647]
[1750455709108,1.80546773,103610.0,103600.0,0.25990647]
[1750455709293,1.74797688,103610.0,103600.0,0.25990647]
[1750455710706,1.71507688,103610.0,103600.0,0.25990647]
[1750455710908,1.71510377,103610.0,103600.0,0.25990647]
[1750455711611,2.11251925,103610.0,103600.0,0.22820647]
[1750455712011,1.71510377,103610.0,103600.0,0.22860647]
[1750455713515,1.71510377,103610.0,103600.0,0.26110647]
[1750455715813,2.11251925,103610.0,103600.0,0.26110647]
[1750455716407,2.18918053,103610.0,103600.0,0.26110647]
[1750455716614,1.79176505,103610.0,103600.0,0.26110647]
[1750455716911,1.79176505,103610.0,103600.0,0.25168928]
[1750455717808,1.79176505,103610.0,103600.0,0.28258928]
[1750455719315,1.71510377,103610.0,103600.0,0.28258928]
[1750455722617,2.11251925,103610.0,103600.0,0.09897407]
[1750455723324,2.11251925,103610.0,103600.0,0.29200647]
[1750455724910,1.71510377,103610.0,103600.0,0.29200647]
[1750455728714,1.65340377,103610.0,103600.0,0.29200647]
[1750455730618,1.73037239,103610.0,103600.0,0.29200647]
[1750455732626,1.7303731,103610.0,103600.0,0.29200647]
[1750455732923,0.07996933,103610.0,103600.0,1.08683743]
[1750455733118,0.003,103610.0,103600.0,1.44763743]
[1750455733317,0.06073722,103610.0,103600.0,1.58603743]
[1750455733513,0.06073722,103610.0,103600.0,2.17787743]
[1750455733914,0.01083722,103610.0,103600.0,2.17787743]
[1750455734420,0.63866138,103620.0,103610.0,0.1930137]
[1750455734724,0.63866138,103620.0,103610.0,1.01322918]
[1750455735019,0.63866138,103620.0,103610.0,0.65242918]
[1750455735214,0.63866138,103620.0,103610.0,1.01322918]
[1750455735825,0.63866138,103620.0,103610.0,1.01522918]
[1750455736931,0.63866138,103620.0,103610.0,0.6178137]
[1750455737219,0.63866138,103620.0,103610.0,1.01522918]
[1750455737930,0.63866138,103620.0,103610.0,0.6178137]
[1750455738120,0.63866138,103620.0,103610.0,1.01522918]
[1750455739625,0.2412459,103620.0,103610.0,1.01522918]
[1750455739831,0.63866138,103620.0,103610.0,1.01522918]
[1750455740131,0.39741548,103620.0,103610.0,1.03285098]
[1750455740831,0.39741548,103620.0,103610.0,1.03702505]
[1750455741526,1.12467131,103630.0,103620.0,0.1929951]
[1750455741829,1.12467131,103630.0,103620.0,0.2874951]
[1750455742328,1.12467131,103630.0,103620.0,0.68491058]
[1750455742526,1.07642441,103630.0,103620.0,0.68491058]
[1750455742829,0.99945508,103630.0,103620.0,0.68491058]
[1750455743031,0.63865508,103630.0,103620.0,0.2874951]
[1750455743222,0.63865508,103630.0,103620.0,1.04571058]
[1750455743422,0.63865508,103630.0,103620.0,0.68491058]
[1750455743728,0.63965508,103630.0,103620.0,0.2874951]
[1750455746932,0.2422396,103630.0,103620.0,0.2874951]
[1750455747125,0.63965508,103630.0,103620.0,0.2874951]
[1750455747932,0.63965508,103630.0,103620.0,0.68491058]
[1750455748134,0.59140818,103630.0,103620.0,0.68491058]
[1750455748332,0.59140818,103630.0,103620.0,1.04571058]
[1750455748532,0.59139198,103630.0,103620.0,1.04571058]
[1750455750229,0.59139198,103630.0,103620.0,1.63739058]
[1750455752725,0.001,103630.0,103620.0,1.2399751]
[1750455752931,0.001,103630.0,103620.0,1.63739058]
[1750455753239,0.001,103630.0,103620.0,1.77567058]
[1750455753529,0.39841548,103630.0,103620.0,1.77567058]
[1750455753734,0.39841548,103630.0,103620.0,1.79343563]
[1750455754739,0.001,103630.0,103620.0,1.79343563]
[1750455755236,0.001,103630.0,103620.0,1.79309026]
[1750455755430,0.001,103630.0,103620.0,1.77567058]
[1750455755834,0.001,103630.0,103620.0,2.17308606]
[1750455756035,0.001,103630.0,103620.0,2.17726013]
[1750455757340,0.001,103630.0,103620.0,1.77984465]
[1750455758440,0.05854939,103630.0,103620.0,1.77984465]
[1750455759631,0.45596487,103630.0,103620.0,1.38242917]
[1750455759833,0.05854939,103630.0,103620.0,1.38242917]
[1750455760138,0.45596487,103630.0,103620.0,1.77984465]
[1750455760437,0.05854939,103630.0,103620.0,1.77984465]
[1750455762343,0.45596487,103630.0,103620.0,1.77984465]
[1750455762544,0.05854939,103630.0,103620.0,1.77984465]
[1750455762744,0.05867112,103630.0,103620.0,1.77984465]
[1750455764248,0.4560866,103630.0,103620.0,1.77984465]
[1750455765130,0.05867112,103630.0,103620.0,1.77984465]
[1750455765335,0.05867112,103630.0,103620.0,2.17726013]
[1750455766845,0.05867112,103630.0,103620.0,1.77984465]
[1750455767239,0.05867112,103630.0,103620.0,1.77858013]
[1750455767443,0.05867112,103630.0,103620.0,2.37138013]
[1750455767640,0.001,103630.0,103620.0,2.37138013]
[1750455768547,0.001,103630.0,103620.0,2.37106013]
[1750455769053,0.65092277,103650.0,103640.0,0.1929579]
[1750455769238,0.69916117,103650.0,103640.0,0.94176043]
[1750455769439,0.69916117,103650.0,103640.0,1.59850043]
[1750455770247,0.69916117,103650.0,103640.0,1.00606043]
[1750455771148,0.72106317,103650.0,103640.0,1.00806043]
[1750455771538,0.72106317,103650.0,103640.0,1.00906043]
[1750455772744,0.54971241,103660.0,103650.0,0.1929392]
[1750455772943,0.74343301,103660.0,103650.0,0.68315468]
[1750455773146,0.54971241,103660.0,103650.0,1.04395468]
[1750455773342,0.47314308,103660.0,103650.0,1.04395468]
[1750455773653,1.42427926,103660.0,103650.0,0.1933392]
[1750455773846,1.48707926,103660.0,103650.0,0.1933392]
[1750455774547,1.50910614,103660.0,103650.0,0.1933392]
[1750455776849,1.11169066,103660.0,103650.0,0.1933392]
[1750455778154,0.71427518,103660.0,103650.0,0.1933392]
[1750455778348,1.14279066,103660.0,103650.0,0.1933392]
[1750455778543,0.78199066,103660.0,103650.0,0.1933392]
[1750455778743,0.38457518,103660.0,103650.0,0.1933392]
[1750455779045,0.78199066,103660.0,103650.0,0.1933392]
[1750455779843,0.78159066,103660.0,103650.0,0.59075468]
[1750455780046,0.78199066,103660.0,103650.0,0.59075468]
[1750455780247,0.38457518,103660.0,103650.0,0.59075468]
[1750455780547,0.78199066,103660.0,103650.0,0.59075468]
[1750455781547,0.38457518,103660.0,103650.0,0.59075468]
[1750455781744,0.09775448,103660.0,103650.0,0.2568392]
[1750455781943,0.49516996,103660.0,103650.0,0.68515468]
[1750455782137,0.49476996,103660.0,103650.0,0.68515468]
[1750455782343,0.09735448,103660.0,103650.0,0.68515468]
[1750455782545,0.0004,103660.0,103650.0,0.68515468]
[1750455783255,0.0004,103660.0,103650.0,1.04595468]
[1750455784249,0.1933206,103660.0,103650.0,1.04595468]
[1750455784555,0.61258281,103660.0,103650.0,1.04595468]
[1750455784855,0.21516733,103660.0,103650.0,1.04546927]
[1750455785056,0.1933206,103660.0,103650.0,1.04546927]
[1750455785458,0.1933206,103660.0,103650.0,0.65271327]
[1750455785652,0.1933206,103660.0,103650.0,1.04964334]
[1750455785960,0.27020037,103660.0,103650.0,1.04964334]
[1750455787155,0.07727977,103660.0,103650.0,1.04964334]
[1750455787654,0.07687977,103660.0,103650.0,1.04964334]
[1750455787859,0.2903681,103670.0,103660.0,0.1929206]
[1750455788059,0.2903681,103670.0,103660.0,1.28085067]
[1750455788250,0.2903681,103670.0,103660.0,0.8839206]
[1750455788950,0.2903681,103670.0,103660.0,1.2447206]
[1750455789653,0.2903681,103670.0,103660.0,0.8839206]
[1750455790956,0.36665817,103670.0,103660.0,0.8839206]
[1750455793760,0.72745817,103670.0,103660.0,0.8839206]
[1750455793955,0.1929206,103660.0,103650.0,0.84140957]
[1750455794158,0.25051942,103660.0,103650.0,1.26450957]
[1750455794460,0.25051942,103660.0,103650.0,1.26490957]
[1750455795962,0.25051942,103660.0,103650.0,1.66183964]
[1750455796166,0.25051942,103660.0,103650.0,1.69193964]
[1750455799560,0.25051942,103660.0,103650.0,1.70925598]
[1750455804172,0.98215067,103660.0,103650.0,0.00417407]
[1750455804371,1.22612641,103660.0,103650.0,0.00417407]
[1750455804667,1.22612641,103660.0,103650.0,0.00035291]
[1750455804868,1.36676641,103660.0,103650.0,0.00035291]
[1750455805067,1.36676641,103660.0,103650.0,0.00075291]
[1750455805769,1.36676641,103660.0,103650.0,0.00035291]
[1750455805958,1.36676641,103660.0,103650.0,0.00075291]
[1750455806767,1.36676641,103660.0,103650.0,0.00035291]
[1750455806964,1.36676641,103660.0,103650.0,0.00075291]
[1750455808569,1.55971041,103660.0,103650.0,0.00075291]
[1750455810775,1.48274108,103660.0,103650.0,0.00075291]
[1750455812177,1.55955262,103660.0,103650.0,0.00075291]
[1750455814078,1.36660862,103660.0,103650.0,0.00075291]
[1750455816775,1.36660862,103660.0,103650.0,0.00035291]
[1750455816976,1.36660862,103660.0,103650.0,0.00075291]
[1750455818881,1.76395953,103660.0,103650.0,0.00075291]
[1750455820584,1.76395953,103660.0,103650.0,0.06465291]
[1750455820980,1.76395953,103660.0,103650.0,0.03215291]
[1750455822779,1.36676797,103660.0,103650.0,0.03215291]
[1750455823483,1.36676797,103660.0,103650.0,0.02273967]
[1750455823682,1.36676797,103660.0,103650.0,0.05363967]
[1750455824077,1.36676797,103660.0,103650.0,0.05781374]
[1750455824276,1.36676797,103660.0,103650.0,0.25075294]
[1750455824684,1.36676797,103660.0,103650.0,0.05781374]
[1750455825182,1.13082797,103660.0,103650.0,0.25075304]
[1750455825386,1.64881643,103660.0,103650.0,0.25075304]
[1750455825981,0.69361643,103660.0,103650.0,0.25075304]
[1750455826181,0.37333855,103660.0,103650.0,0.25075304]
[1750455826382,0.1933206,103660.0,103650.0,0.64784246]
[1750455826789,0.25052603,103660.0,103650.0,0.64784246]
[1750455826987,0.25092603,103660.0,103650.0,0.64784246]
[1750455827378,0.25092603,103660.0,103650.0,1.00864246]
[1750455831689,0.25052603,103660.0,103650.0,1.60308246]
[1750455831990,0.25052603,103660.0,103650.0,1.60408246]
[1750455831991,0.25092603,103660.0,103650.0,1.60408246]
[1750455832190,0.25092603,103660.0,103650.0,1.60608246]
[1750455832792,0.25052603,103660.0,103650.0,1.60608246]
[1750455832987,0.25092603,103660.0,103650.0,1.60608246]
[1750455833181,0.05800543,103660.0,103650.0,2.04902646]
[1750455833690,0.41488857,103670.0,103660.0,0.1929206]
[1750455833691,0.05860543,103670.0,103660.0,0.1929206]
[1750455833988,0.05860543,103670.0,103660.0,1.20140523]
[1750455834389,0.05860543,103670.0,103660.0,1.39433323]
[1750455835290,0.001,103670.0,103660.0,1.39433323]
[1750455836181,0.001,103670.0,103660.0,1.20140523]
[1750455838079,0.001,103670.0,103660.0,1.64433323]
[1750455838389,0.0008,103680.0,103670.0,0.1929019]
[1750455838593,0.0008,103680.0,103670.0,0.98359132]
[1750455838794,0.25047063,103690.0,103680.0,0.1928833]
[1750455839094,0.25047063,103690.0,103680.0,1.2184633]
[1750455839295,0.25047063,103690.0,103680.0,1.3581833]
[1750455840598,0.05760543,103690.0,103680.0,1.75527272]
[1750455840891,0.3292206,103700.0,103690.0,0.1928647]
[1750455841192,0.3292206,103700.0,103690.0,0.2230647]
[1750455841396,0.3296206,103700.0,103690.0,0.2230647]
[1750455841803,0.1367678,103700.0,103690.0,0.5838647]
[1750455841987,0.3296139,103700.0,103690.0,0.98095412]
[1750455842187,0.3316139,103700.0,103690.0,0.98095412]
[1750455842388,0.0034,103700.0,103690.0,0.98095412]
[1750455843489,0.0044,103700.0,103690.0,0.98095412]
[1750455844295,0.0034,103700.0,103690.0,0.98512819]
[1750455844688,0.0014,103700.0,103690.0,0.98512819]
[1750455845397,0.1942461,103700.0,103690.0,0.98512819]
[1750455845903,0.0014,103700.0,103690.0,0.98512819]